Cogmind - Beta 12 @@@ ROGUE MODE // 2023.05.06 @ 11:54:34 Player: kasaphescent Result: Destroyed by P-80 Master with Gamma Rifle Performance ------------- Evolutions (7) 3500 Regions Visited (21) 4200 Robots Destroyed (167) 835 Value Destroyed (7423) 7423 Prototype IDs (9) 180 Alien Tech Used (0) 0 Bonus (5995) 5995 TOTAL SCORE: 22133 Bonus ------- High Alert Combat Kills 406 Follower Combat Kills 3706 Network Hubs Disabled 200 Met Imprinter 300 Was Imprinted 300 Met Zhirov 300 MAIN.C Attacked Warlord 500 Warlord Defense Kills 938 A7 Reached Mainframe 300 Met R17 at Cetus 500 Read Decrypted Archives 300 Friendly Fire -1755 Cogmind --------- Core Integrity 0/1300 Matter 300/300 Energy 22/100 System Corruption 33% Temperature Cool (42) Movement Core (50) Location -3/Research Parts ------- > --- POWER (2) -------- (None) > --- PROPULSION (6) --- (None) > --- UTILITY (10) ----- Advanced Signal Interpreter Hacking Suite > --- WEAPON (3) ------- (None) > --- INVENTORY (5) ---- Point Defense System Improved Field Recycling Unit (0) RU-N14's Throwing Claymores (10) Chainsword Spear Peak State ------------ > --- POWER ------------ Antimatter Reactor Quantum Reactor > --- PROPULSION ------- Centrium Heavy Treads Centrium Heavy Treads > --- UTILITY ---------- Huge Storage Unit Enhanced Optical Array Improved Actuator Array Improved Transmission Jammer Zionite Weapon Casing Layered Light Armor Plating Layered Medium Armor Plating Centrium Medium Armor Plating Centrium Medium Armor Plating Hardlight Generator > --- WEAPON ----------- Ripper CR-A16's Pointy Stick Heavy Pick > --- INVENTORY -------- Improved Medium Treads Armored Medium Treads Compact Wheel Compact Wheel Compact Wheel Armored Huge Wheel Armored Huge Wheel Centrium Medium Armor Plating Point Defense System Heavy Rocket Launcher RU-N14's Throwing Claymores RU-N14's Throwing Claymores RU-N14's Throwing Claymores RU-N14's Throwing Claymores Heavy Flail Great Maul Chainsword Ripper Spear GAL Module [Rating: 128] Favorites ----------- Power Reinforced Deuterium Engine Engine Reinforced Deuterium Engine Power Core Neutrino Core Reactor Quantum Reactor Propulsion Light Treads Treads Light Treads Leg Carbon-fiber Leg Wheel Compact Wheel Utility Huge Storage Unit Device Hardlight Generator Storage Huge Storage Unit Processor Melee Analysis Suite Hackware Improved Hacking Suite Protection Improved Medium Armor Plating Weapon Heavy Flail Energy Gun Small Laser Ballistic Gun Assault Rifle Launcher Heavy Rocket Launcher Special Weapon RU-N14's Throwing Claymores Impact Weapon Heavy Flail Slashing Weapon Ripper Piercing Weapon Heavy Pick Build | -11 -10 -9 -8 -8 -7 -6 -6 -6 -6 -5 -5 -5 -5 -5 -5 -4 -4 -4 -4 -3 -3 ------- Run | Jun Mat Mat Mat Sto Fac Fac Low Low Zio Pro Fac Ext Cet Arc Hub Fac Upp Upp War Pro Res Slots Evolved 14 | . . 2 2 . 2 2 . . . . 2 . . . . 2 . . . . 2 Power 1 | . . . . . . 1 . . . . . . . . . . . . . . . Propulsion 4 | . . 2 . . . . . . . . . . . . . . . . . . 2 Utility 8 | . . . 2 . 2 1 . . . . 1 . . . . 2 . . . . . Weapon 1 | . . . . . . . . . . . 1 . . . . . . . . . . Parts Attached 250 | 6 6 8 7 23 24 16 29 7 2 7 6 12 4 1 8 7 20 13 6 9 29 Power 45 | 1 . 1 2 4 2 2 3 2 1 2 . 2 1 . 4 4 5 2 . 2 5 Engine 13 | 1 . 1 1 1 2 2 . 2 1 1 . . . . 1 . . . . . . Core 16 | . . . 1 3 . . 3 . . 1 . 2 . . 1 1 . 2 . 1 1 Reactor 16 | . . . . . . . . . . . . . 1 . 2 3 5 . . 1 4 Propulsion 76 | 2 1 7 3 10 8 2 12 1 . 5 1 6 2 . . . 1 1 1 . 13 Treads 39 | 1 1 1 1 5 5 1 7 . . 2 . 6 2 . . . . 1 . . 6 Leg 11 | . . . . . . . 2 1 . 3 1 . . . . . . . . . 4 Wheel 26 | 1 . 6 2 5 3 1 3 . . . . . . . . . 1 . 1 . 3 Hover . | . . . . . . . . . . . . . . . . . . . . . . Flight . | . . . . . . . . . . . . . . . . . . . . . . Utility 82 | 1 3 . 2 5 9 11 10 1 1 . 4 2 1 1 2 3 9 4 1 3 9 Device 25 | . . . 1 . 1 5 3 . . . 2 1 1 . 1 1 3 . . 2 4 Storage 3 | 1 1 . . . . . . . . . . . . . . . . . . . 1 Processor 11 | . . . 1 . 3 2 1 . 1 . . . . . . . . 1 . . 2 Hackware 2 | . . . . . . . . . . . . . . 1 . . . . . . 1 Protection 41 | . 2 . . 5 5 4 6 1 . . 2 1 . . 1 2 6 3 1 1 1 Artifact . | . . . . . . . . . . . . . . . . . . . . . . Weapon 47 | 2 2 . . 4 5 1 4 3 . . 1 2 . . 2 . 5 6 4 4 2 Energy Gun 1 | 1 . . . . . . . . . . . . . . . . . . . . . Energy Cannon . | . . . . . . . . . . . . . . . . . . . . . . Ballistic Gun 1 | 1 . . . . . . . . . . . . . . . . . . . . . Ballistic Cannon . | . . . . . . . . . . . . . . . . . . . . . . Launcher 6 | . . . . 1 1 . 2 . . . . . . . . . 1 1 . . . Special Weapon 7 | . . . . . . . . . . . . . . . 1 . 1 . 2 2 1 Impact Weapon 18 | . 2 . . 3 2 . 2 2 . . . 1 . . . . 1 2 1 2 . Slashing Weapon 11 | . . . . . 2 1 . . . . 1 . . . 1 . 1 3 1 . 1 Piercing Weapon 3 | . . . . . . . . 1 . . . 1 . . . . 1 . . . . Special Melee Weapon . | . . . . . . . . . . . . . . . . . . . . . . Unidentified Prototypes 9 | . . . . . . 1 . . . . . . 1 . 2 . 4 . . . 1 Corrupted Parts 8 | . . . . 1 . . . . . 2 . . . . 2 . 1 . . . 2 System Corruption 41 | . . . . 11 . . . . . 4 . . . . 8 . 6 . . . 12 Parts Lost 100 | . 2 1 1 5 8 2 16 5 . . . 1 1 1 . . 7 3 1 8 38 Power 19 | . . . . 1 . . 2 1 . . . 1 . 1 . . 2 2 . 2 7 Propulsion 40 | . 1 1 1 3 6 2 8 1 . . . . . . . . 1 1 . . 15 Utility 32 | . 1 . . 1 2 . 5 1 . . . . 1 . . . 4 . 1 5 11 Weapon 9 | . . . . . . . 1 2 . . . . . . . . . . . 1 5 Highest Loss Streak 22 | . 1 1 1 2 3 2 15 3 . . . 1 1 1 . . 6 1 1 4 22 To Critical Strikes . | . . . . . . . . . . . . . . . . . . . . . . Average Slot Usage (%) 94 | . 91 98 100 99 99 99 94 93 100 99 100 99 89 84 85 87 86 88 88 77 76 Engine 5 | . 14 11 7 . 7 13 3 4 13 13 11 5 . . . . . . . . . Core 2 | . . . 1 8 . . 5 2 . . . 4 5 2 2 3 . 5 10 7 2 Reactor 1 | . . . . . . . . . . . . . 4 5 5 6 9 4 . 2 5 Treads 9 | . 14 16 18 18 14 13 9 6 6 5 . 20 12 11 11 10 8 5 1 . 11 Leg 5 | . . . . . . . 5 18 20 20 23 2 . . . . . . . . . Wheel 6 | . 14 25 18 17 14 12 9 1 . . . . . . . . 1 5 8 10 5 Device 9 | . . . 9 6 3 5 3 6 6 6 12 17 17 14 14 19 17 15 14 13 12 Storage 6 | . 14 11 9 9 7 6 6 6 6 6 5 5 5 5 5 5 5 5 5 5 4 Processor 11 | . . . 9 9 23 22 23 16 13 13 9 5 5 5 5 5 5 6 10 10 14 Protection 15 | . 6 11 9 11 10 10 11 16 20 20 17 16 17 17 17 21 21 23 21 11 2 Impact Weapon 7 | . 25 22 18 18 10 12 9 8 6 6 5 4 5 5 5 5 2 . . 4 3 Slashing Weapon 3 | . . . . . 4 . 2 . . . 5 5 5 5 5 5 6 9 9 5 3 Piercing Weapon 3 | . . . . . . . . 3 6 6 5 5 5 5 5 5 5 5 5 5 3 Naked Turns . | . . . . . . . . . . . . . . . . . . . . . . Heaviest Build 219 | 11 94 94 97 101 113 128 120 140 140 139 149 152 157 157 160 172 172 159 141 146 219 Greatest Support 197 | 10 10 36 26 32 28 32 64 48 48 63 63 86 160 160 160 160 160 28 56 56 197 Greatest Overweight (x) 10 | 1 9 3 4 9 10 4 7 7 2 2 2 3 1 . . 1 5 5 4 2 5 Average Overweight (x) 2 | . 4 2 3 3 3 3 4 3 2 2 2 1 . . . . 2 4 2 2 1 Largest Inventory Capacity 25 | 8 25 25 25 25 25 25 25 25 25 25 25 25 25 25 25 25 25 25 25 25 25 Average Capacity 24 | 6 21 25 25 25 25 25 25 25 25 25 25 25 25 25 25 25 25 25 25 25 24 Most Carried 25 | 6 19 25 25 25 25 25 25 18 25 25 25 25 25 25 25 25 25 25 25 25 23 Average Carried 22 | 3 10 23 23 24 23 23 18 12 21 24 24 24 24 24 24 24 24 23 24 22 19 Final Capacity 25 | 8 25 25 25 25 25 25 25 25 25 25 25 25 25 25 25 25 25 25 25 25 5 Final Carried 25 | 6 19 25 25 24 22 25 11 18 25 25 25 25 24 25 25 25 23 24 25 22 5 Class Distribution -------------------- 64% | Scavenger-Mutant 25% | Mutant 5% | Commander-Mutant Dominant Class ---------------- Mutant | -10/Materials Mutant | -9/Materials Mutant | -8/Materials Mutant | -8/Storage Scavenger-Mutant | -7/Factory Mutant | -6/Factory Mutant | -6/Lower Caves Scavenger-Mutant | -6/Lower Caves Scavenger-Mutant | -6/Zion Scavenger-Mutant | -5/Proximity Caves Scavenger-Mutant | -5/Factory Scavenger-Mutant | -5/Extension Commander-Mutant | -5/Cetus Mutant | -5/Archives Scavenger-Mutant | -5/Hub_04(d) Mutant | -4/Factory Scavenger-Mutant | -4/Upper Caves Scavenger-Mutant | -4/Upper Caves Scavenger-Mutant | -4/Warlord Scavenger-Mutant | -3/Proximity Caves Scavenger-Mutant | -3/Research Resources | -11 -10 -9 -8 -8 -7 -6 -6 -6 -6 -5 -5 -5 -5 -5 -5 -4 -4 -4 -4 -3 -3 ----------- Run | Jun Mat Mat Mat Sto Fac Fac Low Low Zio Pro Fac Ext Cet Arc Hub Fac Upp Upp War Pro Res Matter Collected 2693 | 212 88 85 50 265 207 146 265 98 29 . 100 171 40 7 89 60 285 177 64 70 185 Remotely . | . . . . . . . . . . . . . . . . . . . . . . Salvage Created 8261 | . 240 407 478 1609 399 297 621 504 . . 133 242 61 69 208 249 652 598 200 408 886 Parts 262 | . 7 8 10 49 20 7 8 15 . . 6 9 3 4 9 10 20 18 1 3 55 Haulers Intercepted 6 | . . 4 1 1 . . . . . . . . . . . . . . . . . Recyclers Shooed 1 | . . . . . . . . . . . . 1 . . . . . . . . . Parts Field Recycled . | . . . . . . . . . . . . . . . . . . . . . . Retrieved Matter . | . . . . . . . . . . . . . . . . . . . . . . Parts Self-Destructed 65 | . . . . . . . 5 14 . 11 . . . . . . 22 12 . 1 . Prevented 15 | . . . . . . . 2 2 . 8 . . . . . . 1 1 . 1 . Kills | -11 -10 -9 -8 -8 -7 -6 -6 -6 -6 -5 -5 -5 -5 -5 -5 -4 -4 -4 -4 -3 -3 ------- Run | Jun Mat Mat Mat Sto Fac Fac Low Low Zio Pro Fac Ext Cet Arc Hub Fac Upp Upp War Pro Res Combat Hostiles Destroyed 133 | . 5 4 11 29 8 5 10 9 . . . 1 1 . 1 . 15 10 5 8 11 Melee 72 | . 3 1 5 18 4 2 6 6 . . . 1 1 . . . 8 8 . 2 7 Cannons 3 | . . . . . . . . . . . . . . . . . . . 1 . 2 AOE 19 | . . . . 3 3 . . . . . . . . . 1 . 5 . 3 3 1 Classes Destroyed 18 | . 3 3 2 2 1 . 2 . . . 1 . . . 1 . 1 . 2 . . Worker 5 | . . . . . . . . . . . 1 . . . 1 . . . . . 3 Builder 7 | . . . 1 . 1 . . . . . . 1 . . 1 . . . . . 3 Hauler 6 | . . 4 1 1 . . . . . . . . . . . . . . . . . Recycler 9 | . . 1 . 3 . . . . . . 1 1 . . . 2 . . . . 1 Operator 2 | . 1 . . . . 1 . . . . . . . . . . . . . . . Watcher 2 | . 1 . . . 1 . . . . . . . . . . . . . . . . Swarmer 17 | . . . 3 . 3 . 2 1 . . . . . . . . 7 1 . . . Grunt 65 | . 5 3 8 15 2 3 6 4 . . . . 1 . . . 4 3 1 4 6 Brawler 5 | . . . . 3 . . . 2 . . . . . . . . . . . . . Duelist 4 | . . . . . . . 1 1 . . . . . . . . . 2 . . . Protector 1 | . . . . . . . . . . . . . . . . . . . 1 . . Sentry 20 | . . 1 . 10 2 . 1 1 . . . 1 . . . . 1 2 . . 1 Hunter 10 | . . . . 1 . 1 . . . . . . . . . . 2 . 2 4 . Programmer 9 | . . . . . 1 1 . . . . . . . . 1 . . 2 . . 4 Behemoth 1 | . . . . . . . . . . . . . . . . . 1 . . . . Striker 2 | . . . . . . . . . . . . . . . . . . . 2 . . Z-Light 2 | . . . . . . . . . . . . . . . 2 . . . . . . Samaritan 1 | . . . . . . . 1 . . . . . . . . . . . . . . Best Kill Streak 10 | . 2 2 3 6 3 2 7 2 . . 1 1 1 . 3 2 4 4 5 4 10 Combat Bots Only 7 | . 2 2 3 5 3 2 7 2 . . . 1 1 . 1 . 4 4 5 4 5 Max Kills in Single Turn 5 | . 1 1 1 2 2 1 1 1 . . 1 1 1 . 5 1 2 1 2 3 5 Gunslinging . | . . . . . . . . . . . . . . . . . . . . . . Exploded 3 | . . . . 2 2 . . . . . . . . . 1 . 2 . 1 3 1 Melee 1 | . 1 1 1 1 1 1 1 1 . . . 1 1 . . . 1 1 . 1 1 Uniques/NPCs Destroyed . | . . . . . . . . . . . . . . . . . . . . . . Combat | -11 -10 -9 -8 -8 -7 -6 -6 -6 -6 -5 -5 -5 -5 -5 -5 -4 -4 -4 -4 -3 -3 -------- Run | Jun Mat Mat Mat Sto Fac Fac Low Low Zio Pro Fac Ext Cet Arc Hub Fac Upp Upp War Pro Res Damage Taken 20411 | . 485 232 362 1792 775 607 1901 686 . . 80 358 331 692 157 272 2000 1255 656 1580 6190 Core 2776 | . 117 20 84 218 90 55 204 38 . . 53 . . 45 . 20 131 111 187 86 1317 Absorbed by Shields 1472 | . . . . . . 76 88 88 . . 4 144 132 . 4 44 436 92 90 . 274 Redirected to Shielding 118 | . . . . . . . . . . . . . . . . . 40 43 . 35 . Regen/Repaired (Parts) 309 | . . . . . . 28 . . . . . . . . . . . . 281 . . Core Remaining (%) 73 | 100 53 95 . 45 87 . . . . 65 . . . . 90 . . . . 53 . Volleys Fired 30 | . . . . 3 2 . 3 . . . . . . . 1 . 7 1 6 3 4 Largest 1 | . . . . 1 1 . 1 . . . . . . . 1 . 1 1 1 1 1 Hottest 43 | . . . . 30 30 . 43 . . . . . . . . . 39 39 . . . Shots Fired 29 | . . . . 3 2 . 3 . . . . . . . 1 . 6 1 6 3 4 Gun . | . . . . . . . . . . . . . . . . . . . . . . Cannon . | . . . . . . . . . . . . . . . . . . . . . . Launcher 13 | . . . . 3 2 . 3 . . . . . . . . . 4 1 . . . Special 16 | . . . . . . . . . . . . . . . 1 . 2 . 6 3 4 Kinetic . | . . . . . . . . . . . . . . . . . . . . . . Thermal . | . . . . . . . . . . . . . . . . . . . . . . Explosive 26 | . . . . 3 2 . . . . . . . . . 1 . 6 1 6 3 4 Electromagnetic 3 | . . . . . . . 3 . . . . . . . . . . . . . . Robot Hit Streak 5 | . . . . . 2 . 1 . . . . . . . . . 3 . 2 3 5 Robot Miss Streak 1 | . . . . . . . 1 . . . . . . . . . 1 1 . 1 . Penetration Max . | . . . . . . . . . . . . . . . . . . . . . . Secondary Targets . | . . . . . . . . . . . . . . . . . . . . . . Shots Hit Robots 425 | . 18 18 27 78 22 19 27 24 . . 2 23 7 4 1 2 39 40 3 26 45 Core Hits 177 | . 2 . 4 27 11 3 10 9 . . 1 3 3 2 3 2 25 18 10 14 30 Critical Kills 5 | . . . . 1 1 . . 1 . . . . . 1 . . . . . 1 . Critical Parts Destroyed 42 | . 2 6 6 10 . 4 3 3 . . . 1 1 . . . 2 . . 1 3 Critical Strikes 68 | . 2 6 6 13 1 4 4 4 . . 1 3 2 1 . . 5 3 . 4 9 Smash 49 | . 2 6 6 13 1 4 3 4 . . . 1 1 1 . . 2 . . 2 3 Sever 8 | . . . . . . . 1 . . . . . 1 . . . 2 1 . 1 2 Impale 11 | . . . . . . . . . . . 1 2 . . . . 1 2 . 1 4 Melee Attacks 624 | . 29 24 45 107 27 33 43 29 4 . 7 35 16 4 8 3 52 54 11 35 58 Impact 370 | . 29 24 45 107 13 29 27 17 2 . 1 9 11 1 . . 9 10 1 24 11 Slashing 101 | . . . . . 14 4 16 . . . 2 7 2 1 1 1 15 19 5 6 8 Piercing 153 | . . . . . . . . 12 2 . 4 19 3 2 7 2 28 25 5 5 39 Sneak Attacks 40 | . 1 5 4 6 1 1 3 . . . 2 9 . . 1 2 1 2 . . 2 Combat Hostiles 3 | . . . 1 1 . . . . . . . . . . . . . 1 . . . Follow-up Attacks 103 | . 3 3 2 9 1 4 3 4 . . . 8 4 1 . . 20 20 1 8 12 Damage Inflicted 23916 | . 669 881 1303 3665 1106 951 1585 1029 . . 152 1125 236 352 651 148 2244 1501 1337 2158 2823 Guns . | . . . . . . . . . . . . . . . . . . . . . . Cannons . | . . . . . . . . . . . . . . . . . . . . . . Explosions 5496 | . . . . 312 178 . 283 . . . . . . . 596 . 781 5 1164 1066 1111 Melee 17992 | . 669 881 1303 3353 928 951 1302 1029 . . 152 1123 236 352 55 148 1389 1496 53 1015 1557 Ramming 12 | . . . . . . . . . . . . 2 . . . . . . . . 10 Kinetic . | . . . . . . . . . . . . . . . . . . . . . . Thermal . | . . . . . . . . . . . . . . . . . . . . . . Explosive 4617 | . . . . 312 178 . . . . . . . . . . . 781 5 1164 1066 1111 Electromagnetic 879 | . . . . . . . 283 . . . . . . . 596 . . . . . . Impact 11100 | . 669 881 1303 3353 389 800 764 699 . . . 187 107 111 . . 346 394 53 717 327 Slashing 3327 | . . . . . 539 151 538 . . . . 239 38 100 . . 483 500 120 246 373 Piercing 3981 | . . . . . . . . 330 . . 152 697 91 141 55 148 634 602 . 129 1002 Highest Corruption 33 | . . . . 15 . 5 3 6 6 4 1 1 1 1 10 . 6 8 8 . 33 Average Corruption 3 | . . . . 13 . 2 2 4 6 3 1 1 1 1 1 . 6 7 8 . 10 Corruption Purged 5 | . . . . . . 5 . . . . . . . . . . . . . . . Corruption Blocked 10 | . . . . . . . . . . . 2 . . . 8 . . . . . . Effects 159 | . . . . 7 . 3 15 17 11 1 2 20 3 1 3 . 32 32 1 . 11 Message Errors 49 | . . . . 2 . 1 3 5 2 . 1 5 2 . 2 . 8 12 . . 6 Matter Fused 26 | . . . . . . . 2 4 1 . . 3 . . 1 . 9 5 . . 1 Heat Flow Errors 24 | . . . . 1 . . 1 4 4 . . 4 . . . . 5 3 . . 2 Energy Discharges 19 | . . . . 2 . 1 3 1 . . . 4 . 1 . . 3 1 1 . 2 Parts Rejected 7 | . . . . . . . 3 . . . 1 . . . . . 1 2 . . . Parts Fused 1 | . . . . . . . . . 1 . . . . . . . . . . . . Data Loss (minor) 19 | . . . . 1 . 1 2 1 2 1 . 3 1 . . . 3 4 . . . Data Loss (major) 9 | . . . . 1 . . 1 2 1 . . . . . . . 2 2 . . . Alerts 4 | . . . . . . . . . . . . 1 . . . . . 3 . . . Weapon Failures 1 | . . . . . . . . . . . . . . . . . 1 . . . . Overload Shots . | . . . . . . . . . . . . . . . . . . . . . . Overflow Damage 4110 | . 180 313 413 722 80 245 349 195 . . 34 373 27 138 116 . 198 143 26 179 379 Projectiles 40 | . . . . . . . . . . . . . . . . . . . . 40 . Explosions 152 | . . . . . . . . . . . . . . . 101 . . . 15 . 36 Melee 3918 | . 180 313 413 722 80 245 349 195 . . 34 373 27 138 15 . 198 143 11 139 343 Knockbacks 42 | . 1 3 8 7 4 5 5 3 . . . . . . . . . 2 1 . 3 Impact 42 | . 1 3 8 7 4 5 5 3 . . . . . . . . . 2 1 . 3 Kinetic . | . . . . . . . . . . . . . . . . . . . . . . Secondary . | . . . . . . . . . . . . . . . . . . . . . . Self-Inflicted Damage 147 | . . . . . . . 9 . . . . . . . 102 . . 36 . . . Shots 3 | . . . . . . . 1 . . . . . . . 1 . . 1 . . . Rammed 3 | . . . . . . . . . . . . 1 . . . . . . . . 2 Targets Rammed 3 | . . . . . . . . . . . . 1 . . . . . . . . 2 Kicked . | . . . . . . . . . . . . . . . . . . . . . . Crushed . | . . . . . . . . . . . . . . . . . . . . . . Highest Temperature 279 | . 10 30 . 251 9 1 184 274 255 . . 279 6 . 4 34 254 277 . 23 190 Average Temperature 63 | . 5 17 . 74 9 1 47 121 123 . . 114 4 . 1 6 48 109 . 13 87 Received Heat Transfer 3913 | . 288 45 135 729 240 129 766 160 . . 11 91 61 . 16 42 177 83 9 114 817 Effects 2 | . . . . . . . . . . . . 2 . . . . . . . . . Energy Bleed 1 | . . . . . . . . . . . . 1 . . . . . . . . . Interference 1 | . . . . . . . . . . . . 1 . . . . . . . . . Siege Activations . | . . . . . . . . . . . . . . . . . . . . . . Robots Corrupted 3 | . . . . . . . 3 . . . . . . . . . . . . . . Combat Hostiles 3 | . . . . . . . 3 . . . . . . . . . . . . . . Parts Fried 83 | . 6 7 8 17 3 9 11 4 . . . 2 . . 3 . 3 2 1 6 1 Impact Corruptions 117 | . 10 13 14 23 3 11 14 6 . . . 3 1 . . . 5 2 1 5 6 Robots Melted . | . . . . . . . . . . . . . . . . . . . . . . Combat Hostiles . | . . . . . . . . . . . . . . . . . . . . . . Parts Melted 5 | . . . . 1 . . . . . . . . . . 3 . . . . . 1 Heat Transferred . | . . . . . . . . . . . . . . . . . . . . . . Parts Sabotaged . | . . . . . . . . . . . . . . . . . . . . . . Parts Stolen . | . . . . . . . . . . . . . . . . . . . . . . Parts Stripped . | . . . . . . . . . . . . . . . . . . . . . . Power Chain Reactions . | . . . . . . . . . . . . . . . . . . . . . . Missiles Intercepted . | . . . . . . . . . . . . . . . . . . . . . . Alert | -11 -10 -9 -8 -8 -7 -6 -6 -6 -6 -5 -5 -5 -5 -5 -5 -4 -4 -4 -4 -3 -3 ------- Run | Jun Mat Mat Mat Sto Fac Fac Low Low Zio Pro Fac Ext Cet Arc Hub Fac Upp Upp War Pro Res Peak Influence 889 | . 207 118 289 889 398 193 . . . . 450 518 684 448 771 453 . . . . 151 Initial 393 | . . 9 22 121 393 100 . . . . 128 104 289 273 135 377 . . . . . Average 216 | . 83 47 152 477 259 71 . . . . 233 165 523 366 368 392 . . . . 14 Maximum Alert Level 3 | . 1 . 1 3 1 . . . . . 2 2 2 2 3 2 . . . . . Low Security (%) 52 | 100 72 100 59 6 27 100 . . . . 36 59 . . 37 . . . . . 100 Level 1 33 | . 27 . 40 42 72 . . . . . 61 37 6 91 10 77 . . . . . Level 2 11 | . . . . 30 . . . . . . 1 3 93 8 43 22 . . . . . Level 3 2 | . . . . 20 . . . . . . . . . . 8 . . . . . . Level 4 . | . . . . . . . . . . . . . . . . . . . . . . Level 5 . | . . . . . . . . . . . . . . . . . . . . . . High Security . | . . . . . . . . . . . . . . . . . . . . . . Max Security . | . . . . . . . . . . . . . . . . . . . . . . Squads Dispatched 30 | . 1 . 1 5 4 2 . 1 . . 1 4 . . 3 1 . 1 . . 6 Investigation 7 | . 1 . 1 1 . . . . . . . 3 . . 1 . . . . . . Extermination 7 | . . . . . 1 1 . . . . 1 . . . 1 1 . . . . 2 Reinforcement 9 | . . . . 3 . 1 . . . . . . . . 1 . . . . . 4 Assault 4 | . . . . 1 . . . 1 . . . 1 . . . . . 1 . . . Garrison 3 | . . . . . 3 . . . . . . . . . . . . . . . . Intercept . | . . . . . . . . . . . . . . . . . . . . . . Searches Triggered . | . . . . . . . . . . . . . . . . . . . . . . Construction Impeded . | . . . . . . . . . . . . . . . . . . . . . . Haulers Reinforced . | . . . . . . . . . . . . . . . . . . . . . . Active Scanning Responses . | . . . . . . . . . . . . . . . . . . . . . . Cargo Convoy Interrupts . | . . . . . . . . . . . . . . . . . . . . . . Stealth | -11 -10 -9 -8 -8 -7 -6 -6 -6 -6 -5 -5 -5 -5 -5 -5 -4 -4 -4 -4 -3 -3 --------- Run | Jun Mat Mat Mat Sto Fac Fac Low Low Zio Pro Fac Ext Cet Arc Hub Fac Upp Upp War Pro Res Distress Signals 9 | . 1 1 . 1 . 1 . . . . 1 . 2 . 1 . . . 1 . . Communications Jammed 104 | . . . . . . . . . . . . 1 101 . 2 . . . . . . Distress Signals 104 | . . . . . . . . . . . . 1 101 . 2 . . . . . . Times Spotted 289 | . 13 10 11 44 11 12 21 9 . 12 17 24 13 8 9 3 15 10 18 9 20 Peak Tracking Total 13 | . 5 4 3 9 4 3 8 7 . 5 5 5 5 6 2 2 5 6 13 5 10 Tactical Retreats 25 | . 2 . . 6 1 1 4 2 . 1 . 1 . 1 . . . 3 1 . 2 Traps | -11 -10 -9 -8 -8 -7 -6 -6 -6 -6 -5 -5 -5 -5 -5 -5 -4 -4 -4 -4 -3 -3 ------- Run | Jun Mat Mat Mat Sto Fac Fac Low Low Zio Pro Fac Ext Cet Arc Hub Fac Upp Upp War Pro Res Traps Triggered 6 | . . 2 . 1 1 1 . . . . . . . . 1 . . . . . . Indirectly . | . . . . . . . . . . . . . . . . . . . . . . Trap Hack Attempts . | . . . . . . . . . . . . . . . . . . . . . . Triggered . | . . . . . . . . . . . . . . . . . . . . . . Disarmed . | . . . . . . . . . . . . . . . . . . . . . . Reprogrammed . | . . . . . . . . . . . . . . . . . . . . . . Reused . | . . . . . . . . . . . . . . . . . . . . . . Traps Extracted . | . . . . . . . . . . . . . . . . . . . . . . Installed . | . . . . . . . . . . . . . . . . . . . . . . Triggered 12 | . 1 . . . . . . . . 2 . . . . . . . . 9 . . Machines | -11 -10 -9 -8 -8 -7 -6 -6 -6 -6 -5 -5 -5 -5 -5 -5 -4 -4 -4 -4 -3 -3 ---------- Run | Jun Mat Mat Mat Sto Fac Fac Low Low Zio Pro Fac Ext Cet Arc Hub Fac Upp Upp War Pro Res Machines Disabled 21 | . . . . 3 . . . . . . 1 6 3 . 5 . 1 1 . . 1 Max in Single Turn 4 | . . . . 1 . . . . . . . 1 1 . 4 . 1 1 . . 1 Garrison Access 1 | . . . . 1 . . . . . . . . . . . . . . . . . Network Hub 1 | . . . . . . . . . . . . . . . 1 . . . . . . Machines Repaired . | . . . . . . . . . . . . . . . . . . . . . . Machines Sabotaged . | . . . . . . . . . . . . . . . . . . . . . . Overloaded Fab Kills . | . . . . . . . . . . . . . . . . . . . . . . Hacking | -11 -10 -9 -8 -8 -7 -6 -6 -6 -6 -5 -5 -5 -5 -5 -5 -4 -4 -4 -4 -3 -3 --------- Run | Jun Mat Mat Mat Sto Fac Fac Low Low Zio Pro Fac Ext Cet Arc Hub Fac Upp Upp War Pro Res Machines Accessed 37 | . 2 1 2 5 9 5 1 . . . . 5 2 1 . . . . 2 . 2 Terminals 23 | . 2 1 2 4 6 1 1 . . . . 4 2 . . . . . . . . Fabricators 4 | . . . . . 1 3 . . . . . . . . . . . . . . . Repair Stations 1 | . . . . . . 1 . . . . . . . . . . . . . . . Recycling Units 3 | . . . . . . . . . . . . 1 . . . . . . . . 2 Scanalyzers . | . . . . . . . . . . . . . . . . . . . . . . Garrison Access 3 | . . . . 1 2 . . . . . . . . . . . . . . . . Total Hacks 102 | . 3 1 5 11 23 11 1 . . . . 14 4 25 . . . . 2 . 2 Successful 54 | . 1 1 1 5 7 6 1 . . . . 3 1 25 . . . . 2 . 1 Failed 48 | . 2 . 4 6 16 5 . . . . . 11 3 . . . . . . . 1 Catastrophic 13 | . 2 . 2 1 4 1 . . . . . 2 1 . . . . . . . . Database Lockouts . | . . . . . . . . . . . . . . . . . . . . . . Manual 56 | . . . 2 7 12 7 . . . . 7 9 1 . 6 3 . . . . 2 Terminals 56 | . 3 1 5 10 17 3 1 . . . . 12 4 . . . . . . . . Fabricators 9 | . . . . . 3 6 . . . . . . . . . . . . . . . Repair Stations 2 | . . . . . . 2 . . . . . . . . . . . . . . . Recycling Units 4 | . . . . . . . . . . . . 2 . . . . . . . . 2 Scanalyzers . | . . . . . . . . . . . . . . . . . . . . . . Garrison Access 4 | . . . . 1 3 . . . . . . . . . . . . . . . . Terminal Hacks 39 | . 1 1 . 3 2 . 1 . . . . 3 1 25 . . . . 2 . . Record 27 | . . . . . . . 1 . . . . . 1 25 . . . . . . . Open Door 6 | . . . . 1 . . . . . . . 3 . . . . . . 2 . . Level Access Points 1 | . . . . . 1 . . . . . . . . . . . . . . . . Emergency Access Points 1 | . . . . 1 . . . . . . . . . . . . . . . . . Unreport Threat 1 | . . . . . 1 . . . . . . . . . . . . . . . . Registered Components 2 | . 1 . . 1 . . . . . . . . . . . . . . . . . Zone Layout 1 | . . 1 . . . . . . . . . . . . . . . . . . . Fabricator Hacks 2 | . . . . . 1 1 . . . . . . . . . . . . . . . Network Status 2 | . . . . . 1 1 . . . . . . . . . . . . . . . Repair Station Hacks 2 | . . . . . . 2 . . . . . . . . . . . . . . . Scan Component 1 | . . . . . . 1 . . . . . . . . . . . . . . . Repair 1 | . . . . . . 1 . . . . . . . . . . . . . . . Recycling Unit Hacks 1 | . . . . . . . . . . . . . . . . . . . . . 1 Retrieve Components 1 | . . . . . . . . . . . . . . . . . . . . . 1 Scanalyzer . | . . . . . . . . . . . . . . . . . . . . . . Garrison Access Hacks 1 | . . . . 1 . . . . . . . . . . . . . . . . . Seal Access 1 | . . . . 1 . . . . . . . . . . . . . . . . . Unauthorized Hacks 9 | . . . 1 1 4 3 . . . . . . . . . . . . . . . Terminals 6 | . . . 1 1 3 1 . . . . . . . . . . . . . . . Track 1 | . . . . 1 . . . . . . . . . . . . . . . . . Botnet 4 | . . . . . 3 1 . . . . . . . . . . . . . . . Disrupt 1 | . . . 1 . . . . . . . . . . . . . . . . . . Fabricators 3 | . . . . . 1 2 . . . . . . . . . . . . . . . Fabnet 3 | . . . . . 1 2 . . . . . . . . . . . . . . . Repair Stations . | . . . . . . . . . . . . . . . . . . . . . . Recycling Units . | . . . . . . . . . . . . . . . . . . . . . . Scanalyzers . | . . . . . . . . . . . . . . . . . . . . . . Garrison Access . | . . . . . . . . . . . . . . . . . . . . . . Data Cores Recovered 1 | . 1 . . . . . . . . . . . . . . . . . . . . Used . | . . . . . . . . . . . . . . . . . . . . . . Hacking Detections 28 | . 1 1 2 4 9 4 . . . . . 4 2 . . . . . . . 1 Full Trace Events 5 | . . . 1 1 . . . . . . . 3 . . . . . . . . . Feedback Events . | . . . . . . . . . . . . . . . . . . . . . . Feedback Blocked . | . . . . . . . . . . . . . . . . . . . . . . Robot Schematics Acquired 3 | . . . . . . . . . 3 . . . . . . . . . . . . Robots Built . | . . . . . . . . . . . . . . . . . . . . . . Authchips . | . . . . . . . . . . . . . . . . . . . . . . Time . | . . . . . . . . . . . . . . . . . . . . . . Total Robot Build Rating . | . . . . . . . . . . . . . . . . . . . . . . Part Schematics Acquired 13 | . . . . . . . . . 13 . . . . . . . . . . . . Parts Built . | . . . . . . . . . . . . . . . . . . . . . . Authchips . | . . . . . . . . . . . . . . . . . . . . . . Time . | . . . . . . . . . . . . . . . . . . . . . . Total Part Build Rating . | . . . . . . . . . . . . . . . . . . . . . . Parts Repaired 1 | . . . . . . 1 . . . . . . . . . . . . . . . Time 19 | . . . . . . 19 . . . . . . . . . . . . . . . Parts Recycled . | . . . . . . . . . . . . . . . . . . . . . . Recycled Matter . | . . . . . . . . . . . . . . . . . . . . . . Retrieved Matter . | . . . . . . . . . . . . . . . . . . . . . . Retrieved Components 3 | . . . . . . . . . . . . . . . . . . . . . 3 Parts Scanalyzed . | . . . . . . . . . . . . . . . . . . . . . . Part Schematics Acquired . | . . . . . . . . . . . . . . . . . . . . . . Parts Damaged . | . . . . . . . . . . . . . . . . . . . . . . Bothacking | -11 -10 -9 -8 -8 -7 -6 -6 -6 -6 -5 -5 -5 -5 -5 -5 -4 -4 -4 -4 -3 -3 ------------ Run | Jun Mat Mat Mat Sto Fac Fac Low Low Zio Pro Fac Ext Cet Arc Hub Fac Upp Upp War Pro Res Used RIF Installer . | . . . . . . . . . . . . . . . . . . . . . . Robots Hacked 11 | . . . . . . . . 1 . . 4 2 . 2 . . 1 . 1 . . Non-combat . | . . . . . . . . . . . . . . . . . . . . . . Combat 11 | . . . . . . . . 1 . . 4 2 . 2 . . 1 . 1 . . Robot Hacks Applied . | . . . . . . . . . . . . . . . . . . . . . . Relay Couplers Released . | . . . . . . . . . . . . . . . . . . . . . . Fabnet Peak Effective % 7 | . . . . . . 3 3 3 3 7 7 7 7 7 7 2 2 2 2 . . Autooverrided 11 | . . . . . . . . 1 . . 4 2 . 2 . . 1 . 1 . . Robots Rewired 15 | . . . . . . . . 1 . . . 8 . . . . . 1 5 . . Allies Hacked 4 | . . . . . . . . . . . 2 1 . . 1 . . . . . . Hacks Repelled 1 | . . . . . . . . . . . 1 . . . . . . . . . . Allies | -11 -10 -9 -8 -8 -7 -6 -6 -6 -6 -5 -5 -5 -5 -5 -5 -4 -4 -4 -4 -3 -3 -------- Run | Jun Mat Mat Mat Sto Fac Fac Low Low Zio Pro Fac Ext Cet Arc Hub Fac Upp Upp War Pro Res Total Allies 76 | . . . . . . . . 2 17 . 4 26 4 2 9 . 1 1 6 . 4 Largest Group 24 | . . . . . . . . 1 18 18 17 24 19 5 8 1 2 1 7 . 4 Highest-Rated Group 933 | . . . . . . . . 30 553 553 559 926 933 392 522 58 105 47 410 . 156 Highest-Rated Ally 159 | . . . . . . . . 30 51 51 54 159 159 159 70 58 58 47 69 . 39 Zionite Dispatches 6 | . . . . . . . . . . . . 2 . . 3 . . . . . 1 Light 3 | . . . . . . . . . . . . 1 . . 2 . . . . . . Fire 2 | . . . . . . . . . . . . 1 . . . . . . . . 1 Hacker 1 | . . . . . . . . . . . . . . . 1 . . . . . . Total Orders 2 | . . . . . . . . . . . . . . . . 1 1 . . . . EXPLORE 2 | . . . . . . . . . . . . . . . . 1 1 . . . . Ally Attacks 578 | . . . . . . . . 3 . 68 102 175 91 23 89 12 4 . 11 . . Total Damage 15441 | . . . . . . . . 116 . 1758 2256 4292 2962 892 2449 197 101 . 418 . . Kills 104 | . . . . . . . . . . 13 18 25 24 7 14 1 1 . 1 . . Allies Corrupted 1 | . . . . . . . . . . . . . . . 1 . . . . . . Allies Melted . | . . . . . . . . . . . . . . . . . . . . . . Intel | -11 -10 -9 -8 -8 -7 -6 -6 -6 -6 -5 -5 -5 -5 -5 -5 -4 -4 -4 -4 -3 -3 ------- Run | Jun Mat Mat Mat Sto Fac Fac Low Low Zio Pro Fac Ext Cet Arc Hub Fac Upp Upp War Pro Res Robot Analysis Total . | . . . . . . . . . . . . . . . . . . . . . . Derelict Logs Recovered 7 | . . . . . . . 1 2 . 2 . . . . . . 2 . . . . Drone Launches 3 | . . . . . . . . . . . . . . . . 1 2 . . . . Drone Recoveries 2 | . . . . . . . . . . . . . . . . 1 1 . . . . Zionite Intel Received 2 | . . . . . . . . . . . 1 1 . . . . . . . . . Unaware Analyses 1 | . . . . . . . . . . . 1 . . . . . . . . . . Depthwide Sectors/0 1 | . . . . . . . . . . . . 1 . . . . . . . . . Exploration | -11 -10 -9 -8 -8 -7 -6 -6 -6 -6 -5 -5 -5 -5 -5 -5 -4 -4 -4 -4 -3 -3 ------------- Run | Jun Mat Mat Mat Sto Fac Fac Low Low Zio Pro Fac Ext Cet Arc Hub Fac Upp Upp War Pro Res Turns Passed 18671 | 55 477 621 322 920 1106 1276 918 740 2553 811 886 1873 551 234 318 302 1382 1017 676 1010 623 Spaces Moved 8698 | 47 233 377 126 389 701 694 440 258 975 294 329 686 296 138 174 132 593 487 390 686 253 Core 16 | 3 . . . . . . . . . . . . . . . . . . . . 13 Treads 1775 | . . . . . . . . . . . . 630 296 138 174 132 326 . . . 79 Legs 1858 | . . . . . . . . 204 975 294 329 56 . . . . . . . . . Wheels 5049 | 44 233 377 126 389 701 694 440 54 . . . . . . . . 267 487 390 686 161 Hover . | . . . . . . . . . . . . . . . . . . . . . . Flight . | . . . . . . . . . . . . . . . . . . . . . . Fastest Speed 50 | 50 80 116 135 130 135 145 115 190 260 260 260 240 160 160 160 160 160 160 130 130 50 Average Speed 183 | 87 154 125 135 138 141 154 173 248 260 260 260 244 168 160 160 213 202 170 137 130 136 Slowest Speed 330 | 95 215 135 140 215 230 155 205 260 260 260 260 330 240 160 160 240 240 175 160 130 245 Overloaded Moves . | . . . . . . . . . . . . . . . . . . . . . . Propulsion Burnouts . | . . . . . . . . . . . . . . . . . . . . . . Robots Hopped . | . . . . . . . . . . . . . . . . . . . . . . Cave-ins Triggered . | . . . . . . . . . . . . . . . . . . . . . . Exploration Rate (%) 49 | 3 46 37 12 68 21 19 60 43 91 54 15 88 90 99 30 6 80 63 60 92 7 Regions Visited 21 Branch Regions 13 Pre-discovered Areas 11 | . . . . . . . . . 1 . . 9 . . . . 1 . . . . Known Exits Taken 1 | . . . . . 1 . . . . . . . . . . . . . . . . Unknown Exits Taken 20 | 1 1 1 1 1 . 1 1 1 1 1 1 1 1 1 1 1 1 1 1 1 . Scrap Searched 14 | . . . . . . . 1 1 4 2 . . . . . . 1 3 . 2 . Spaces Dug 30 | . 1 . . 3 1 5 4 . . . 2 2 . . 4 . . . . 3 5 Terrain Destroyed 434 | . 1 . . 14 8 5 4 . . . 2 2 . . 197 . 64 17 57 35 28 Melee 30 | . 1 . . 3 1 5 4 . . . 2 2 . . 4 . . . . 3 5 Projectile 2 | . . . . . . . . . . . . . . . 1 . . . . 1 . AOE 402 | . . . . 11 7 . . . . . . . . . 192 . 64 17 57 31 23 Terrain Rammed . | . . . . . . . . . . . . . . . . . . . . . . Walls Destroyed . | . . . . . . . . . . . . . . . . . . . . . . Machines Disabled . | . . . . . . . . . . . . . . . . . . . . . . Actions | -11 -10 -9 -8 -8 -7 -6 -6 -6 -6 -5 -5 -5 -5 -5 -5 -4 -4 -4 -4 -3 -3 --------- Run | Jun Mat Mat Mat Sto Fac Fac Low Low Zio Pro Fac Ext Cet Arc Hub Fac Upp Upp War Pro Res Total 10554 | 58 306 497 213 625 791 862 535 314 989 341 360 838 336 146 198 152 702 601 508 757 425 Wait 669 | . 14 65 39 85 15 105 29 15 3 37 3 26 9 4 4 1 46 52 5 32 80 Move 8677 | 46 232 376 125 388 700 693 439 257 974 293 328 685 295 137 173 131 592 486 389 685 253 Hop . | . . . . . . . . . . . . . . . . . . . . . . Pick Up 149 | 6 18 16 3 11 13 13 . 11 7 2 9 8 6 . 1 5 2 4 2 3 9 Fast Attach 60 | 6 5 . . . 2 2 6 2 . 2 2 2 3 1 2 1 8 4 1 2 9 Attach 92 | . 1 7 3 5 9 6 14 4 . 3 2 1 1 . 1 2 6 2 1 5 19 Detach 16 | . 3 3 . . . 1 1 . . 1 1 . . 1 2 . 1 . . . 2 Swap 98 | . . 1 4 18 13 8 9 1 2 2 2 9 . . 5 4 6 7 4 2 1 Drop 118 | . 7 8 4 20 15 8 2 . 1 1 9 13 11 . 2 6 6 . 1 1 3 Fire 30 | . . . . 3 2 . 3 . . . . . . . 1 . 7 1 6 3 4 Melee 464 | . 26 21 35 95 22 26 32 22 2 . 4 24 11 3 7 2 28 31 6 24 43 Ram . | . . . . . . . . . . . . . . . . . . . . . . Kick . | . . . . . . . . . . . . . . . . . . . . . . Crush 3 | . . . . . . . . . . . . 1 . . . . . . . . 2 Escape Stasis 4 | . . . . . . . . . . . . 4 . . . . . . . . . Rewire 174 | . . . . . . . . 2 . . . 65 . . . . . 14 93 . . Trap . | . . . . . . . . . . . . . . . . . . . . . . Miscellaneous . | . . . . . . . . . . . . . . . . . . . . . . Route ------- -11/Junkyard -10/Materials -9/Materials (discovered 2 exits: *Mat / [*Min]) -8/Materials -8/Storage -7/Factory (discovered 4 exits: *Fac x4) -6/Factory -6/Lower Caves -6/Lower Caves -6/Zion -5/Proximity Caves -5/Factory -5/Extension (discovered 2 exits: *Fac / *Cet) -5/Cetus (discovered 2 exits: *Fac / *Arc) -5/Archives (discovered 3 exits: *Fac / *Hub x2) -5/Hub_04(d) (discovered 2 exits: *Fac x2) -4/Factory -4/Upper Caves -4/Upper Caves -4/Warlord -3/Proximity Caves -3/Research History --------- Turn | Location | Event 15 | -11/Junkyard | Discovered new exit (range 15) 56 | -11/Junkyard | Entered Materials 150 | -10/Materials | Discovered new exit (range 4) 315 | -10/Materials | Build established: Mutant 533 | -10/Materials | Entered another Materials area 533 | -9/Materials | Evolved 2 slots: Propulsion x2 800 | -9/Materials | Discovered new exit (range 15) 1134 | -9/Materials | Discovered new exit (range 13) 1154 | -9/Materials | Entered another Materials area 1154 | -8/Materials | Evolved 2 slots: Utility x2 1156 | -8/Materials | Discovered new exit (range 15) 1476 | -8/Materials | Entered Storage 1751 | -8/Storage | Build established: Scavenger-Mutant 2062 | -8/Storage | Build established: Mutant 2241 | -8/Storage | System corruption reached 10% 2276 | -8/Storage | First assault squad dispatched 2353 | -8/Storage | Core integrity fell below 50% 2390 | -8/Storage | Discovered new exit (range 6) 2396 | -8/Storage | Entered Factory 2396 | -7/Factory | Evolved 2 slots: Utility x2 2409 | -7/Factory | Discovered new exit (range 14) 2520 | -7/Factory | Build established: Scavenger-Mutant 2962 | -7/Factory | Identified exit to Factory 3059 | -7/Factory | Garrison activated, responded to threat 3117 | -7/Factory | Lost 3 parts (2n1u) 3328 | -7/Factory | Lost 3 parts (2n1u) 3502 | -7/Factory | Entered another Factory area 3502 | -6/Factory | Evolved 2 slots: Power x1, Utility x1 3600 | -6/Factory | Build established: Mutant 4200 | -6/Factory | Found Prototype Processor 4200 | -6/Factory | Identified Exp. Targeting Computer 4268 | -6/Factory | Repaired Hardlight Generator 4618 | -6/Factory | Build established: Assassin 4630 | -6/Factory | Discovered new exit (range 16) 4778 | -6/Factory | Entered Lower Caves 4856 | -6/Lower Caves | Learned Factory emergency access door positions 4949 | -6/Lower Caves | Build established: Mutant 5027 | -6/Lower Caves | Attracted the attention of an 0b10 checkpoint 5320 | -6/Lower Caves | Destroyed 7 combat bots 5344 | -6/Lower Caves | Lost 15 parts (2p7n5u1w) 5571 | -6/Lower Caves | Discovered new exit (range 3) 5696 | -6/Lower Caves | Entered another Lower Caves area 5993 | -6/Lower Caves | Attracted the attention of an 0b10 outpost 6080 | -6/Lower Caves | Lost 3 parts (1p1u1w) 6157 | -6/Lower Caves | Learned Factory stockpile data 6199 | -6/Lower Caves | Learned Factory terminal intel 6269 | -6/Lower Caves | Discovered new exit (range 5) 6339 | -6/Lower Caves | Build established: Scavenger-Mutant 6436 | -6/Lower Caves | Entered Zion 6436 | -6/Zion | Accompanied by 1 ally 6582 | -6/Zion | Discovered new exit (range 7) 6663 | -6/Zion | Gained Derelict followers 6743 | -6/Zion | Found CR-A16's Pointy Stick 6851 | -6/Zion | System corruption cleaned by Quarantine Array 7205 | -6/Zion | Acquired unknown access codes intercepted by a Zionite 7244 | -6/Zion | Learned Factory emergency access door positions 7359 | -6/Zion | Given A8's code to call for help 7601 | -6/Zion | Gained Derelict followers 7770 | -6/Zion | Found Prototype Special Weapon 7773 | -6/Zion | Found Prototype Special Weapon 7777 | -6/Zion | Found Prototype Special Weapon 7781 | -6/Zion | Found Prototype Special Weapon 7939 | -6/Zion | Found GAL Module 8244 | -6/Zion | Imprinted 8247 | -6/Zion | Declared Zion's savior 8713 | -6/Zion | Gained Derelict followers 8989 | -6/Zion | Entered Proximity Caves 8989 | -5/Proximity Caves | Accompanied by 18 allies 9279 | -5/Proximity Caves | Learned 4 Factory zone layouts 9308 | -5/Proximity Caves | Learned Factory terminal intel 9674 | -5/Proximity Caves | Received a Behemoth hack from an annoying Tinkerer 9723 | -5/Proximity Caves | Discovered new exit (range 17) 9800 | -5/Proximity Caves | Entered Factory 9800 | -5/Factory | Accompanied by 16 allies 9800 | -5/Factory | Evolved 2 slots: Utility x1, Weapon x1 9804 | -5/Factory | Loaded intel: 26 terminal locations 9913 | -5/Factory | Retrieved Zion intel report: Unaware Analyses 10360 | -5/Factory | Local machine network offline 10642 | -5/Factory | Discovered new exit (range 12) 10686 | -5/Factory | Entered Extension 10791 | -5/Extension | Rescued A7 11010 | -5/Extension | Zion Fire squad teleported in 11061 | -5/Extension | Rescued a captive Derelict 11061 | -5/Extension | Rescued a captive Derelict 11166 | -5/Extension | Zion Light squad teleported in 11177 | -5/Extension | Rescued a captive Derelict 11288 | -5/Extension | Rescued a captive Derelict 11831 | -5/Extension | Spotted B-75 Beast 11837 | -5/Extension | Spotted B-75 Beast 11840 | -5/Extension | Allies destroyed B-75 Beast 11856 | -5/Extension | Allies destroyed B-75 Beast 11954 | -5/Extension | Retrieved Zion intel report: Depthwide Sectors/0 11973 | -5/Extension | Terminal network hard line cut 12010 | -5/Extension | Rescued a captive Derelict 12011 | -5/Extension | Rescued a captive Derelict 12421 | -5/Extension | Build established: Commander-Mutant 12448 | -5/Extension | Rescued a captive Derelict 12451 | -5/Extension | Rescued a captive Derelict 12486 | -5/Extension | First assault squad dispatched 12514 | -5/Extension | Discovered new exit (range 10) 12528 | -5/Extension | Discovered new exit (range 7) 12559 | -5/Extension | Entered Cetus 12559 | -5/Cetus | Accompanied by 15 allies (A7) 12564 | -5/Cetus | Acquired a Cetus Manufacturing Module code from A7 12581 | -5/Cetus | Spotted Cetus Guard 12583 | -5/Cetus | Spotted Cetus Guard 12584 | -5/Cetus | Spotted Cetus Guard 12587 | -5/Cetus | Allies destroyed Cetus Guard 12589 | -5/Cetus | Allies destroyed Cetus Guard 12590 | -5/Cetus | Spotted Cetus Guard 12593 | -5/Cetus | Allies destroyed Cetus Guard 12595 | -5/Cetus | Allies destroyed Cetus Guard 12688 | -5/Cetus | Started Cetus Manufacturing Module 12713 | -5/Cetus | Manufactured an Enhanced Grunt 12738 | -5/Cetus | Manufactured an Enhanced Grunt 12763 | -5/Cetus | Manufactured an Enhanced Grunt 12786 | -5/Cetus | Escorted A7 to Cetus Mainframe 12788 | -5/Cetus | Manufactured an Enhanced Grunt 12796 | -5/Cetus | Cetus Manufacturing Module disabled 12944 | -5/Cetus | Discovered new exit (range 21) 12978 | -5/Cetus | Spotted Cetus Guard 12979 | -5/Cetus | Spotted Cetus Guard 12982 | -5/Cetus | Spotted Cetus Guard 12984 | -5/Cetus | Discovered new exit (range 22) 12991 | -5/Cetus | Spotted Cetus Guard 12993 | -5/Cetus | Allies destroyed Cetus Guard 12997 | -5/Cetus | Allies destroyed Cetus Guard 13003 | -5/Cetus | Allies destroyed Cetus Guard 13005 | -5/Cetus | Allies destroyed Cetus Guard 13009 | -5/Cetus | Scared off Revision 17 13110 | -5/Cetus | Entered Archives 13110 | -5/Archives | Accompanied by 5 allies (A7) 13115 | -5/Archives | Received a hacking code to weaken MAIN.C 13139 | -5/Archives | Met Zhirov 13145 | -5/Archives | Reinforcements dispatched to Archives 13145 | -5/Archives | Discovered new exit (range 22) 13159 | -5/Archives | Unable to access archive contents 13167 | -5/Archives | Discovered new exit (range 22) 13175 | -5/Archives | Read partially decrypted archive contents 13189 | -5/Archives | Discovered new exit (range 22) 13190 | -5/Archives | Reinforcements dispatched to Archives 13191 | -5/Archives | Local machine network offline 13192 | -5/Archives | Zhirov warped through subspace 13210 | -5/Archives | Zhirov detonated Archives 13344 | -5/Archives | Entered Hub_04(d) 13384 | -5/Hub_04(d) | Zion Hacker squad teleported in 13399 | -5/Hub_04(d) | Discovered new exit (range 8) 13455 | -5/Hub_04(d) | Zion Light squad teleported in 13473 | -5/Hub_04(d) | Zion Light squad teleported in 13489 | -5/Hub_04(d) | Discovered new exit (range 7) 13633 | -5/Hub_04(d) | Identified RU-N14's Throwing Claymores (x4) 13634 | -5/Hub_04(d) | Network Hub disabled 13661 | -5/Hub_04(d) | System corruption reached 10% 13662 | -5/Hub_04(d) | Entered Factory 13662 | -4/Factory | Accompanied by 1 ally 13662 | -4/Factory | Evolved 2 slots: Utility x2 13664 | -4/Factory | Loaded intel: 25 terminal locations 13825 | -4/Factory | Build established: Mutant 13932 | -4/Factory | Discovered new exit (range 11) 13964 | -4/Factory | Entered Upper Caves 13964 | -4/Upper Caves | Accompanied by 1 ally 14080 | -4/Upper Caves | Found Prototype Protection 14080 | -4/Upper Caves | Identified Zio. Weapon Casing 14261 | -4/Upper Caves | Build established: Scavenger-Mutant 14593 | -4/Upper Caves | Encountered a Warlord checkpoint 14677 | -4/Upper Caves | Attracted the attention of an 0b10 outpost 14728 | -4/Upper Caves | Spotted B-86 Titan 14835 | -4/Upper Caves | Destroyed B-86 Titan 14862 | -4/Upper Caves | Lost 6 parts (2p1n3u) 14886 | -4/Upper Caves | Learned location of Armory (-4) 14971 | -4/Upper Caves | Attracted the attention of an 0b10 checkpoint 15245 | -4/Upper Caves | Discovered new exit (range 5) 15346 | -4/Upper Caves | Entered another Upper Caves area 15593 | -4/Upper Caves | Attracted the attention of an 0b10 checkpoint 16118 | -4/Upper Caves | Attracted the attention of an 0b10 outpost 16252 | -4/Upper Caves | Discovered new exit (range 5) 16363 | -4/Upper Caves | Entered Warlord 16363 | -4/Warlord | Accompanied by 1 ally 16416 | -4/Warlord | System corruption cleaned by Quarantine Array 16637 | -4/Warlord | Visited the Vortex Lab 16648 | -4/Warlord | Warlord's base attacked by MAIN.C 16924 | -4/Warlord | Opened side exit 16948 | -4/Warlord | Spotted Executioner 16949 | -4/Warlord | Discovered new exit (range 13) 16949 | -4/Warlord | Spotted Striker 16949 | -4/Warlord | Spotted Striker 16979 | -4/Warlord | Destroyed Striker 16998 | -4/Warlord | Warlord forces counterattacked 17004 | -4/Warlord | Destroyed Striker 17039 | -4/Warlord | Entered Proximity Caves 17333 | -3/Proximity Caves | Lost 4 parts (4u) 17516 | -3/Proximity Caves | Lost 4 parts (2p1u1w) 17928 | -3/Proximity Caves | Discovered new exit (range 11) 18049 | -3/Proximity Caves | Entered Research 18049 | -3/Research | Evolved 2 slots: Propulsion x2 18322 | -3/Research | Zion Fire squad teleported in 18449 | -3/Research | Lost 14 parts (3p3n7u1w) 18598 | -3/Research | System corruption reached 10% 18646 | -3/Research | Core integrity fell below 50% 18652 | -3/Research | System corruption reached 30% 18665 | -3/Research | Core integrity fell below 20% 18672 | -3/Research | Destroyed by P-80 Master with Gamma Rifle Last Messages --------------- area. 18657_ Knocked back. 18657_ K-01 Serf collects debris. 18657_ G-67 Veteran destroyed. 18657_ U-05 Engineer destroyed. 18657_ K-01 Serf destroyed. 18658_ Acquired 4 matter. 18658_ K-01 Serf collects debris. 18659_ Knocked back. 18661_ K-01 Serf collects debris. 18663_ Adv. Melee Analysis Suite destroyed. 18663_ G-67 Veteran destroyed. 18665_ Penetrated by Slug. 18665_ RU-N14's Throwing Claymores destroyed. 18665_ K-01 Serf collects debris. 18665_ Door malfunctions. 18665_ Dropped Huge Storage Unit. 18668_ The unstable cave ceiling collapses. 18668_ K-01 Serf collects debris. 18672_ Slug penetrates Wall. Map ----- +----------------------------------------------------+ | ##########/######+######+#######???????????????? | | ####???????????????? | | #??????????????????? | | ###########????????? | | # #????????? | | #####+#################### # !!! #????????? | | # #??????????????# # !!! #????????? | | # !#??????????????# # !!! #????????? | | # #??????????????# +% #????????? | | # #???????###????# # = #????????? | | #! !#?????### ###### # |% #????????? | | #!!= #?????# % # w# %%! #????????? | | #!!= #?????# # ###########????????? | | # #?????#" " # % # #????????? | | ###########?????# T # # #????????? | | ????????????????#""" + + #????????? | | ????????????????# #k % # #????????? | | ????????????????# ! # k %# #????????? | | ????????????????# # % # #????????? | | ????????????????# #R # " " !#????????? | | ????????????????########## # " " #????????? | | ????####+################# ###########????????? | | ???## A %#####???????? | | ? % % x ??? | | ? ^ x ??? | | ????# k p @ k##### ####??? | | ?????#+### # ;### #### ###???????????? | | ????? =! ### #??# #?????????????? | | ????? H * [##?# #??# #?????????????? | | ??????? "" %!#??# #??#???????????????? | | ????????""" *=! !!##?# #??????????????????? | | ????????""" *# %%! #?# #??????????????????? | | ????????? ?#=!=%/% #?# #??????????????????? | | ???????? ????#=/=!"% #?# #??????????????????? | | ?????????????# ]%%# #?# #??????????????????? | | ?????????????# /|!######?# #??????????????????? | | ?????????????####&#??????# +??????????????????? | | ????????????????###??????# #??????????????????? | | ?????????????????????????? #??????????????????? | | ?????????????????????????? #??????????????????? | | ?????????????????????????? #??????????????????? | | ?????????????????????????? #??????????????????? | | ?????????????????????????? ???????????????????? | | ?????????????????????????????????????????????????? | | ?????????????????????????????????????????????????? | | ?????????????????????????????????????????????????? | | ?????????????????????????????????????????????????? | | ?????????????????????????????????????????????????? | | ?????????????????????????????????????????????????? | | ?????????????????????????????????????????????????? | +----------------------------------------------------+ Best States ------------- Heat Dissipation 46 Energy Generation 41 Energy Capacity 575 Matter Stores 300 Matter Capacity 300 Sight Range 22 Robot Scan Range 16 Terrain Scan Range 16 Terrain Scan Density 210 Jamming Range 14 Armor Coverage 775 Resistance: KI 20 Weapon Shielding 100 Point Defense Rating 80 Phase Shifting 10 Evasion (%) 50 Melee Accuracy 10 Target Analysis 8 Recoil Reduction 6 Offensive Hacking 12 Item Schematics ----------------- Adv. Cooling System | -6/Zion | Archive 0b10 Decoder Chip [Scout] | -6/Zion | Archive Impulse Thruster | -6/Zion | Archive Imp. Cryofiber Web | -6/Zion | Archive Matter Compressor | -6/Zion | Archive Adv. Plasma Cannon | -6/Zion | Archive Adv. Melee Analysis Suite | -6/Zion | Archive Arm. Medium Treads | -6/Zion | Archive Railgun | -6/Zion | Archive Tesla Rifle | -6/Zion | Archive Adv. Terrain Scanner | -6/Zion | Archive Lgt. Fission Core | -6/Zion | Archive Recoil Nullifier | -6/Zion | Archive Robot Schematics ------------------ H-77 Assassin | -6/Zion | Archive R-06 Scavenger | -6/Zion | Archive L-41 Fighter | -6/Zion | Archive Fabricated ------------ Nothing Alien Tech Used ----------------- None Achievements -------------- None Challenges ------------ None Game ------ Seed RiotVortexClaw Manual? 0 Play Time 02:02:48 Cumulative 366.3 hours Start 2023.05.05 @ 17:52:40 End 2023.05.06 @ 11:54:34 Sessions 3 Manual Loads 0 Difficulty Rogue Special Mode None Game No. 252 Rogue 252 Adventurer 0 Explorer 0 Win Type - Total 27 Types 23/0/3/1/0/0/0/0/0 Lore% 74 Gallery% 87 Achievement% 69 Wizard Run 0 Options --------- ASCII 0 Keyboard 1 Movement Numpad Keybinds 0 Fullscreen 2 Font 18/SmallcapsGlow Map View 76x50 Tactical HUD 1 Map Filters NONE Filters NONE Steam 1 RUN: 83334e43-b18e-457c-b825-ed4d860d84a6